bitfinex/quotes_BTCUSD_20230109
["timestamp","ask_amount","ask_price","bid_price","bid_amount"]
[1673225309933,0.33705,17196.0,17194.0,0.65224189]
[1673225310165,0.226,17195.0,17192.0,0.4]
[1673225310408,0.1122,17193.0,17192.0,0.4]
[1673225310648,0.1122,17193.0,17192.0,0.91283226]
[1673225311386,0.1682,17193.0,17192.0,0.91283226]
[1673225311859,0.1682,17193.0,17192.0,0.51283226]
[1673225312643,0.1682,17193.0,17190.0,0.70845891]
[1673225312883,0.1682,17193.0,17191.0,0.65778709]
[1673225312884,0.113,17192.0,17191.0,0.65778709]
[1673225313389,0.71208127,17192.0,17190.0,0.00154832]
[1673225313883,0.1127,17191.0,17190.0,0.00154832]
[1673225314120,0.71908127,17192.0,17190.0,0.00154832]
[1673225314352,0.71208127,17192.0,17190.0,0.00154832]
[1673225314590,0.113,17192.0,17191.0,0.4]
[1673225314848,0.12,17192.0,17190.0,0.61498055]
[1673225315312,0.113,17192.0,17190.0,0.00154832]
[1673225315547,0.4,17191.0,17190.0,0.00154832]
[1673225316024,1.0193908,17191.0,17190.0,0.00154832]
[1673225316503,1.8268898,17191.0,17190.0,0.00154832]
[1673225316975,1.8408898,17191.0,17190.0,0.00154832]
[1673225317255,2.88873229,17191.0,17190.0,0.00154832]
[1673225318178,2.87473229,17191.0,17190.0,0.00154832]
[1673225318446,3.00973229,17191.0,17190.0,0.00154832]
[1673225319200,3.30973229,17191.0,17190.0,0.00154832]
[1673225319442,3.30973229,17191.0,17187.0,5.999e-05]
[1673225319704,0.3383,17188.0,17187.0,5.999e-05]
[1673225319956,1.96883452,17188.0,17187.0,5.999e-05]
[1673225320699,2.26883452,17188.0,17187.0,5.999e-05]
[1673225320998,2.37293452,17188.0,17187.0,5.999e-05]
[1673225321535,2.019802,17188.0,17187.0,5.999e-05]
[1673225321778,1.389902,17188.0,17187.0,0.23773788]
[1673225322046,0.808101,17188.0,17187.0,5.999e-05]
[1673225322304,1.90681501,17188.0,17187.0,5.999e-05]
[1673225322600,2.62461601,17188.0,17187.0,5.999e-05]
[1673225322865,2.49392249,17188.0,17187.0,5.999e-05]
[1673225323136,2.06221489,17188.0,17187.0,5.999e-05]
[1673225323386,1.24641389,17188.0,17187.0,0.23773788]
[1673225323634,0.66461289,17188.0,17187.0,5.999e-05]
[1673225324140,0.80061289,17188.0,17187.0,5.999e-05]
[1673225324385,1.24641389,17188.0,17187.0,5.999e-05]
[1673225324662,2.67776327,17188.0,17187.0,5.999e-05]
[1673225324898,2.79076327,17188.0,17187.0,5.999e-05]
[1673225325398,2.92576327,17188.0,17187.0,5.999e-05]
[1673225325902,2.92557602,17188.0,17187.0,5.999e-05]
[1673225326152,2.58921489,17188.0,17187.0,5.999e-05]
[1673225326405,2.47621489,17188.0,17187.0,5.999e-05]
[1673225326675,2.34121489,17188.0,17187.0,5.999e-05]
[1673225326938,2.47721489,17188.0,17187.0,5.999e-05]
[1673225327191,2.92665506,17188.0,17187.0,5.999e-05]
[1673225327441,2.67584217,17188.0,17187.0,5.999e-05]
[1673225327712,3.38845856,17188.0,17187.0,5.999e-05]
[1673225327970,3.18334217,17188.0,17187.0,5.999e-05]
[1673225328182,3.71562586,17188.0,17187.0,5.999e-05]
[1673225328447,3.88356978,17188.0,17187.0,5.999e-05]
[1673225329208,3.74756978,17188.0,17187.0,5.999e-05]
[1673225329456,3.88356978,17188.0,17187.0,5.999e-05]
[1673225329708,3.89206978,17188.0,17187.0,5.999e-05]
[1673225329959,3.19184217,17188.0,17187.0,5.999e-05]
[1673225330236,0.4,17187.0,17184.0,0.00327963]
[1673225330465,2.9725042,17186.0,17184.0,0.00327963]
[1673225330710,0.7365322,17185.0,17184.0,0.00327963]
[1673225330954,2.2003362,17185.0,17184.0,0.00327963]
[1673225331757,0.5884038,17184.0,17183.0,0.00323726]
[1673225331998,3.74367631,17184.0,17181.0,0.00327963]
[1673225332269,0.73678128,17183.0,17181.0,0.00327963]
[1673225332517,1.164008,17182.0,17181.0,0.00327963]
[1673225333266,1.5008054,17182.0,17181.0,0.00327963]
[1673225333517,1.6138054,17182.0,17181.0,0.00327963]
[1673225333792,1.7268054,17182.0,17181.0,0.00327963]
[1673225334054,2.0268054,17182.0,17181.0,0.00327963]
[1673225334297,2.67175141,17182.0,17181.0,0.00327963]
[1673225334539,2.80775141,17182.0,17181.0,0.00327963]
[1673225334793,2.37175141,17182.0,17181.0,0.00327963]
[1673225335033,2.50758205,17182.0,17181.0,0.00327963]
[1673225335291,2.17078465,17182.0,17181.0,0.24095752]
[1673225335580,2.17078465,17182.0,17181.0,0.64831832]
[1673225335581,0.136,17182.0,17181.0,0.64831832]
[1673225336601,0.981981,17183.0,17181.0,0.64831832]
[1673225336859,0.136,17182.0,17181.0,0.64931832]
[1673225337118,1.440416,17184.0,17181.0,0.64831832]
[1673225337367,0.135,17182.0,17181.0,0.64931832]
[1673225337615,0.85845,17184.0,17181.0,0.64831832]
[1673225337931,0.135,17183.0,17181.0,0.88699621]
[1673225338112,2.13371778,17184.0,17181.0,0.64831832]
[1673225338359,2.26971778,17184.0,17181.0,0.64931832]
[1673225338837,2.26971778,17184.0,17181.0,0.64831832]
[1673225339080,2.13371778,17184.0,17181.0,0.64831832]
[1673225339835,0.70048051,17183.0,17181.0,0.00327963]
[1673225340083,0.806304,17182.0,17181.0,0.00427963]
[1673225340332,0.982004,17182.0,17181.0,0.00327963]
[1673225340825,0.982004,17182.0,17181.0,0.00455631]
[1673225341086,0.982004,17182.0,17181.0,0.00427963]
[1673225341351,0.4,17181.0,17179.0,0.00268783]
[1673225341607,1.564121,17181.0,17179.0,0.00268783]
[1673225342435,0.582051,17181.0,17179.0,0.67250281]
[1673225342686,0.582004,17182.0,17180.0,0.51602285]
[1673225342969,0.134,17181.0,17180.0,0.75370074]
[1673225343248,0.134,17181.0,17180.0,0.91602285]
[1673225343501,0.134,17181.0,17180.0,1.49809485]
[1673225344013,0.44812924,17183.0,17180.0,0.91602285]
[1673225344014,1.03009924,17183.0,17180.0,0.91602285]
[1673225344510,0.134,17181.0,17180.0,0.401]
[1673225344511,0.134,17181.0,17180.0,1.26707707]
[1673225344762,0.134,17181.0,17180.0,0.983063]
[1673225345005,0.134,17181.0,17180.0,1.09007961]
[1673225345258,0.134,17181.0,17180.0,1.09001578]
[1673225345512,1.03010024,17183.0,17180.0,1.08901578]
[1673225345784,1.16610024,17183.0,17180.0,1.32769367]
[1673225346029,1.02995024,17183.0,17180.0,1.08901578]
[1673225346305,0.134,17181.0,17180.0,0.69001578]
[1673225346603,1.164026,17182.0,17180.0,0.68901578]
[1673225346852,1.164026,17182.0,17180.0,0.69001578]
[1673225347635,1.164026,17182.0,17180.0,0.68901578]
[1673225347888,0.582022,17182.0,17180.0,0.68901578]
[1673225348212,1.26421673,17183.0,17180.0,0.68907961]
[1673225348375,1.26421673,17183.0,17180.0,1.08907961]
[1673225348617,0.135,17182.0,17180.0,0.69007961]
[1673225348879,0.717011,17182.0,17180.0,0.69001578]
[1673225349132,0.982011,17182.0,17180.0,0.68901578]
[1673225349369,1.564015,17182.0,17179.0,0.00268783]
[1673225349627,2.48306871,17182.0,17180.0,0.001]
[1673225349862,3.0443136,17182.0,17179.0,0.00268783]
[1673225350121,3.1793136,17182.0,17180.0,0.001]
[1673225350381,0.4,17181.0,17179.0,0.00268783]
[1673225350674,0.582072,17180.0,17179.0,0.00368783]
[1673225351165,1.164144,17180.0,17179.0,0.00368783]
[1673225351418,1.164144,17180.0,17179.0,0.00268783]
[1673225351661,2.063044,17180.0,17179.0,0.00368783]
[1673225351929,2.063044,17180.0,17179.0,0.00268783]
[1673225352178,3.77388395,17180.0,17179.0,0.00468783]
[1673225352426,3.43710968,17180.0,17179.0,0.00468783]
[1673225352962,0.9619,17180.0,17179.0,0.00468783]
[1673225353722,2.315944,17180.0,17179.0,0.00468783]
[1673225354010,3.18878705,17180.0,17179.0,0.00468783]
[1673225354269,2.84974042,17180.0,17179.0,0.00468783]
[1673225354526,3.18900688,17180.0,17179.0,0.00468783]
[1673225354818,3.77107888,17180.0,17179.0,0.00468783]
[1673225355070,3.77107888,17180.0,17179.0,0.00268783]
[1673225355071,4.88228177,17180.0,17179.0,0.00268783]
[1673225355350,5.19127048,17180.0,17179.0,0.00268783]
[1673225355606,5.15075354,17180.0,17179.0,0.00268783]
[1673225355904,3.51817888,17180.0,17179.0,0.00268783]
[1673225356159,4.18910684,17180.0,17179.0,0.00268783]
[1673225356674,2.73284042,17180.0,17179.0,0.00268783]
[1673225356927,3.60701382,17180.0,17179.0,0.00268783]
[1673225357748,2.73284042,17180.0,17179.0,0.00268783]
[1673225358272,4.18907915,17180.0,17179.0,0.00268783]
[1673225358551,4.70360092,17180.0,17179.0,0.00268783]
[1673225358839,4.53061221,17180.0,17179.0,0.00268783]
[1673225359093,4.96308398,17180.0,17179.0,0.00268783]
[1673225359345,4.70360092,17180.0,17179.0,0.00268783]
[1673225359596,5.15158398,17180.0,17179.0,0.00268783]
[1673225359863,5.79841372,17180.0,17179.0,0.00268783]
[1673225360110,5.62457268,17180.0,17179.0,0.00268783]
[1673225361639,5.62457268,17180.0,17179.0,0.24036572]
[1673225361640,3.02493515,17180.0,17179.0,0.24036572]
[1673225361899,3.02493515,17180.0,17179.0,0.00268783]
[1673225362162,1.0349,17180.0,17179.0,0.00268783]
[1673225362411,1.90901378,17180.0,17179.0,0.00268783]
[1673225363812,1.77301378,17180.0,17179.0,0.00268783]
[1673225363960,1.90901378,17180.0,17179.0,0.00368783]
[1673225364205,1.94686289,17180.0,17179.0,0.00268783]
[1673225364462,2.66493489,17180.0,17179.0,0.00368783]
[1673225364738,2.49108578,17180.0,17179.0,0.00362664]
[1673225365259,3.07315778,17180.0,17179.0,0.00362664]
[1673225365767,3.07308763,17180.0,17179.0,0.00362664]
[1673225366014,2.49101563,17180.0,17179.0,0.00362664]
[1673225366265,0.17384911,17180.0,17179.0,0.40548453]
[1673225366542,0.43348217,17182.0,17179.0,2.12377668]
[1673225366771,0.00015,17182.0,17180.0,0.777201]
[1673225367029,0.00015,17182.0,17181.0,0.765674]
[1673225367269,0.00015,17182.0,17181.0,1.347712]
[1673225367533,0.00015,17182.0,17181.0,1.9191503]
[1673225367800,0.01415,17182.0,17181.0,1.9191503]
[1673225368044,0.00015,17182.0,17181.0,1.9191503]
[1673225368298,0.01215,17182.0,17181.0,1.9501503]
[1673225368544,0.012,17182.0,17181.0,2.5321883]
[1673225371056,0.012,17182.0,17181.0,2.1665143]
[1673225371354,0.012,17182.0,17181.0,2.5321883]
[1673225372382,0.87390576,17183.0,17181.0,2.57783402]
[1673225372636,0.87390576,17183.0,17182.0,1.11124826]
[1673225372889,0.87390576,17183.0,17182.0,1.48542226]
[1673225373144,0.87390576,17183.0,17182.0,2.68484695]
[1673225373651,0.87390576,17183.0,17182.0,2.60457026]
[1673225373937,0.87590576,17183.0,17182.0,2.50875357]
[1673225374185,0.87390576,17183.0,17182.0,2.88235357]
[1673225374412,0.87590576,17183.0,17182.0,3.02035357]
[1673225374909,0.87790576,17183.0,17182.0,2.64825357]
[1673225375912,0.87790576,17183.0,17182.0,2.94825357]
[1673225376158,0.87790576,17183.0,17182.0,2.64825357]
[1673225376412,0.87790576,17183.0,17182.0,0.276]
[1673225376936,0.87790576,17183.0,17182.0,0.676]
[1673225377226,0.87390576,17183.0,17182.0,0.365674]
[1673225377474,0.87390576,17183.0,17182.0,1.089678]
[1673225377722,0.87390576,17183.0,17182.0,0.947678]
[1673225377992,0.87390576,17183.0,17182.0,1.99900383]
[1673225378252,0.87390576,17183.0,17182.0,2.02800383]
[1673225378500,0.87390576,17183.0,17182.0,1.99900383]
[1673225378770,0.87390576,17183.0,17182.0,2.67700783]
[1673225379377,0.87390576,17183.0,17182.0,2.58100783]
[1673225380887,0.87390576,17183.0,17182.0,2.67700783]
[1673225382718,0.05002377,17185.0,17183.0,0.4]
[1673225382964,0.05002377,17185.0,17184.0,0.365674]
[1673225383196,0.05002377,17185.0,17184.0,1.21159908]
[1673225383405,1.61015137,17186.0,17184.0,2.03164973]
[1673225383406,0.927,17186.0,17184.0,2.03164973]
[1673225383758,0.927,17186.0,17185.0,0.553974]
[1673225383990,0.927,17186.0,17185.0,2.117778]
[1673225385221,0.927,17186.0,17185.0,1.717778]
[1673225385458,0.927,17186.0,17185.0,1.352104]
[1673225386947,0.927,17186.0,17184.0,1.21159908]
[1673225387206,0.927,17186.0,17184.0,0.62966308]
[1673225387456,0.927,17186.0,17183.0,0.981944]
[1673225387713,0.927,17186.0,17185.0,0.029]
[1673225387968,1.227,17186.0,17185.0,0.029]
[1673225388224,0.927,17186.0,17185.0,0.029]
[1673225388472,0.927,17186.0,17183.0,2.17513291]
[1673225388743,0.4,17185.0,17184.0,0.00043676]
[1673225389004,0.927,17186.0,17184.0,0.02943676]
[1673225389325,1.327,17186.0,17184.0,0.4]
[1673225389549,0.922,17186.0,17184.0,0.4]
[1673225389774,1.322,17186.0,17184.0,0.4]
[1673225390040,0.922,17186.0,17184.0,0.00043676]
[1673225390836,0.4,17185.0,17184.0,0.00043676]
[1673225391303,0.922,17186.0,17183.0,1.77511491]
[1673225391599,0.922,17186.0,17183.0,1.77512291]
[1673225392104,0.922,17186.0,17184.0,0.029]
[1673225392360,0.922,17186.0,17183.0,1.77512291]
[1673225392611,1.503873,17186.0,17183.0,1.19317791]
[1673225392870,1.02131399,17185.0,17182.0,0.581971]
[1673225393128,0.4,17184.0,17182.0,0.581971]
[1673225393385,1.60321899,17185.0,17182.0,0.581971]
[1673225393899,1.20321899,17185.0,17182.0,0.581971]
[1673225394155,0.62131399,17185.0,17182.0,1.40165289]
[1673225394673,0.62131399,17185.0,17183.0,0.4]
[1673225396445,0.62131399,17185.0,17183.0,0.029]
[1673225396705,0.76194911,17184.0,17183.0,0.029]
[1673225396951,1.89536311,17184.0,17183.0,0.029]
[1673225397202,3.38168805,17184.0,17183.0,0.029]
[1673225397714,0.4,17183.0,17180.0,0.89054965]
[1673225397967,0.582004,17182.0,17180.0,0.89054965]
[1673225398226,1.68494411,17183.0,17181.0,0.7010097]
[1673225398480,0.9291,17183.0,17182.0,0.9365346]
[1673225398742,0.9291,17183.0,17182.0,1.09885671]
[1673225398998,0.9291,17183.0,17182.0,2.62853871]
[1673225399255,0.9291,17183.0,17182.0,3.21054271]
[1673225399498,0.9291,17183.0,17182.0,3.21097952]
[1673225400004,0.9291,17183.0,17182.0,3.23997952]
[1673225400785,0.9291,17183.0,17182.0,3.23989216]
[1673225401055,0.9291,17183.0,17182.0,2.65753871]
[1673225401291,0.9291,17183.0,17182.0,2.62853871]
[1673225401795,0.9291,17183.0,17182.0,2.62393316]
[1673225402299,0.9291,17183.0,17182.0,2.76793316]
[1673225403359,0.9291,17183.0,17182.0,2.76758371]
[1673225403861,0.9291,17183.0,17182.0,2.76793316]
[1673225404114,0.9291,17183.0,17182.0,2.76758371]
[1673225404367,0.9291,17183.0,17182.0,2.36758371]
[1673225404622,0.9291,17183.0,17182.0,0.144]
[1673225404889,1.10294911,17183.0,17182.0,0.144]
[1673225405935,1.10294911,17183.0,17182.0,0.544]
[1673225406957,1.10294911,17183.0,17182.0,1.126004]
[1673225407469,1.36243217,17183.0,17182.0,0.144]
[1673225407981,0.43384041,17183.0,17182.0,0.144]
[1673225409241,0.60546047,17183.0,17182.0,0.144]
[1673225410746,0.43383982,17183.0,17182.0,0.144]
[1673225411267,0.60546047,17183.0,17182.0,0.144]
[1673225411519,1.76041918,17183.0,17182.0,0.144]
[1673225411766,2.34514497,17183.0,17182.0,0.144]
[1673225411990,1.99641177,17183.0,17182.0,0.144]
[1673225412265,2.3450608,17183.0,17182.0,0.144]
[1673225412777,1.9450608,17183.0,17182.0,0.144]
[1673225414568,1.59641177,17183.0,17182.0,0.144]
[1673225414782,1.94500121,17183.0,17182.0,0.144]
[1673225415372,1.94500573,17183.0,17182.0,0.144]
[1673225415623,1.59641177,17183.0,17182.0,0.144]
[1673225415881,1.9450006,17183.0,17182.0,0.144]
[1673225416405,1.9450006,17183.0,17180.0,0.704876]
[1673225416645,1.1919836,17183.0,17182.0,0.007]
[1673225416896,0.4357059,17183.0,17181.0,1.6366762]
[1673225417150,0.4357059,17183.0,17182.0,0.007]
[1673225417391,0.4357059,17183.0,17181.0,1.6366762]
[1673225417640,0.17428113,17183.0,17181.0,1.63712942]
[1673225417886,0.17428113,17183.0,17181.0,2.21916742]
[1673225418410,0.4357059,17183.0,17181.0,1.6366782]
[1673225418658,0.17428113,17182.0,17181.0,1.6366782]
[1673225418925,0.17428113,17182.0,17181.0,1.0546402]
[1673225419177,0.4357059,17182.0,17181.0,1.0546402]
[1673225419704,0.17428113,17182.0,17181.0,1.0866402]
[1673225419983,0.17428113,17182.0,17181.0,1.6686782]
[1673225420241,0.17428113,17182.0,17181.0,2.2507162]
[1673225420435,0.17428113,17182.0,17181.0,2.25162285]
[1673225420929,0.78429473,17183.0,17181.0,2.25162285]
[1673225421190,0.17428113,17182.0,17181.0,2.25162285]
[1673225421436,0.4357059,17182.0,17181.0,2.2507162]
[1673225421683,0.4357059,17182.0,17181.0,1.6686782]
[1673225421950,0.4357059,17182.0,17181.0,0.03193148]
[1673225421951,1.82557527,17182.0,17181.0,0.03193148]
[1673225422215,2.74948005,17182.0,17181.0,0.03193148]
[1673225422491,2.23051393,17182.0,17181.0,0.03193148]
[1673225422741,2.53051393,17182.0,17181.0,0.02501269]
[1673225422975,3.11437126,17182.0,17180.0,0.17384911]
[1673225423215,1.33544046,17181.0,17180.0,0.17384911]
[1673225423475,2.89951646,17181.0,17180.0,0.17384911]
[1673225424042,3.4086307,17181.0,17180.0,0.17384911]
[1673225424281,3.2187307,17181.0,17180.0,0.17384911]
[1673225424795,2.6960385,17181.0,17180.0,0.17384911]
[1673225425275,2.6960385,17181.0,17180.0,0.18384911]
[1673225426040,3.2187307,17181.0,17180.0,0.18384911]
[1673225426295,2.6960385,17181.0,17180.0,0.18384911]
[1673225426809,3.2780765,17181.0,17180.0,0.18384911]
[1673225427328,3.2780765,17181.0,17180.0,0.18284911]
[1673225428874,3.8007687,17181.0,17180.0,0.18284911]
[1673225429879,3.7667765,17181.0,17180.0,0.18284911]
[1673225431412,3.7752765,17181.0,17180.0,0.18284911]
[1673225432730,4.3895765,17181.0,17180.0,0.18284911]
[1673225432942,4.40775893,17181.0,17180.0,0.18284911]
[1673225433198,4.99161626,17181.0,17180.0,0.18284911]
[1673225433431,4.83921626,17181.0,17180.0,0.18284911]
[1673225433703,4.83921626,17181.0,17177.0,0.00261439]
[1673225433704,0.3475313,17178.0,17177.0,0.00261439]
[1673225434000,2.52647138,17178.0,17177.0,0.00261439]
[1673225434192,3.64769206,17178.0,17177.0,0.00261439]
[1673225434702,4.57039206,17178.0,17177.0,0.00261439]
[1673225435709,4.13557403,17178.0,17177.0,0.00261439]
[1673225435959,4.14407403,17178.0,17177.0,0.00261439]
[1673225436226,4.92665162,17178.0,17177.0,0.00261439]
[1673225436481,4.97020794,17178.0,17177.0,0.00261439]
[1673225436992,4.98684202,17178.0,17177.0,0.00261439]
[1673225437263,5.42168064,17178.0,17177.0,0.01361439]
[1673225437515,5.42168064,17178.0,17177.0,0.00261439]
[1673225437767,4.98684202,17178.0,17177.0,0.01361439]
[1673225438029,4.81293841,17178.0,17177.0,0.00261439]
[1673225438280,4.81293841,17178.0,17177.0,0.01261439]
[1673225438551,4.98684202,17178.0,17177.0,0.01261439]
[1673225440596,5.1608857,17178.0,17177.0,0.01261439]
[1673225441357,4.98678486,17178.0,17177.0,0.01261439]
[1673225442115,5.42159011,17178.0,17177.0,0.01261439]
[1673225442363,5.4608857,17178.0,17177.0,0.01261439]
[1673225442619,5.22624673,17178.0,17177.0,0.01261439]
[1673225443107,4.92624673,17178.0,17177.0,0.01261439]
[1673225443349,5.22624673,17178.0,17177.0,0.01261439]
[1673225443848,4.92624673,17178.0,17177.0,0.01261439]
[1673225444113,5.27385982,17178.0,17177.0,0.01261439]
[1673225444373,4.92624673,17178.0,17177.0,0.01261439]
[1673225444624,5.22624673,17178.0,17177.0,0.01261439]
[1673225445633,4.79140811,17178.0,17177.0,0.01261439]
[1673225445882,5.23445837,17178.0,17177.0,0.01261439]
[1673225446136,5.2343857,17178.0,17177.0,0.01261439]
[1673225446379,4.79990811,17178.0,17177.0,0.01261439]
[1673225447361,4.93445501,17178.0,17177.0,0.01261439]
[1673225447864,5.28208159,17178.0,17177.0,0.01261439]
[1673225448115,5.04748159,17178.0,17177.0,0.01261439]
[1673225448611,4.69985501,17178.0,17177.0,0.01261439]
[1673225448861,4.81235501,17178.0,17177.0,0.01261439]
[1673225449635,14.81235501,17178.0,17177.0,0.01261439]
[1673225449893,15.16003706,17178.0,17177.0,0.01261439]
[1673225450146,14.81235501,17178.0,17177.0,0.01261439]
[1673225451204,14.37780811,17178.0,17177.0,0.01261439]
[1673225451741,14.67780811,17178.0,17177.0,0.01261439]
[1673225452728,14.37780811,17178.0,17177.0,0.01261439]
[1673225452978,14.81252567,17178.0,17177.0,0.01261439]
[1673225453240,14.70002567,17178.0,17177.0,0.01261439]
[1673225453744,14.26530811,17178.0,17177.0,0.01261439]
[1673225455037,14.56530811,17178.0,17177.0,0.01261439]
[1673225456286,15.08739067,17178.0,17177.0,0.01261439]
[1673225456531,15.09589067,17178.0,17177.0,0.01252997]
[1673225457029,5.09589067,17178.0,17177.0,0.01252997]
[1673225457533,5.20890175,17178.0,17177.0,0.00752997]
[1673225458267,4.7469039,17178.0,17177.0,0.00752997]
[1673225458807,4.38690811,17178.0,17177.0,0.00752997]
[1673225459059,4.90930491,17178.0,17177.0,0.00752997]
[1673225460327,4.44696188,17178.0,17177.0,0.00752997]
[1673225460584,4.25111668,17178.0,17177.0,0.00752997]
[1673225460855,4.67513976,17178.0,17177.0,0.00752997]
[1673225462106,4.73519447,17178.0,17177.0,0.00752997]
[1673225462366,4.73521172,17178.0,17177.0,0.00752997]
[1673225462622,5.25828378,17178.0,17177.0,0.00752997]
[1673225462884,5.7813573,17178.0,17177.0,0.00752997]
[1673225463128,6.24435881,17178.0,17177.0,0.00752997]
[1673225463392,6.30443051,17178.0,17177.0,0.00752997]
[1673225463898,6.3950047,17178.0,17177.0,0.00752997]
[1673225464398,16.88761457,17178.0,17177.0,0.00752997]
[1673225465157,16.42460475,17178.0,17177.0,0.00752997]
[1673225466155,16.41860475,17178.0,17177.0,0.00752997]
[1673225467666,17.00594763,17178.0,17177.0,0.00752997]
[1673225468161,16.80594763,17178.0,17177.0,0.00752997]
[1673225468692,16.37342455,17178.0,17177.0,0.00752997]
[1673225468941,14.86338167,17178.0,17177.0,0.00752997]
[1673225469463,12.75266809,17178.0,17177.0,0.69269031]
[1673225469718,12.66517947,17178.0,17177.0,0.69269031]
[1673225470011,12.83966109,17178.0,17177.0,0.69269031]
[1673225470308,13.01416422,17178.0,17177.0,0.69269031]
[1673225470556,13.01416422,17178.0,17177.0,0.68516034]
[1673225470557,12.83968258,17178.0,17177.0,0.68516034]
[1673225471012,12.83968258,17178.0,17177.0,1.08516034]
[1673225471023,12.66519614,17178.0,17177.0,1.19776034]
[1673225471273,12.66519614,17178.0,17177.0,1.82393334]
[1673225471529,12.40344158,17178.0,17177.0,1.82393334]
[1673225472310,12.40344158,17178.0,17177.0,1.8238664]
[1673225472809,12.22894327,17178.0,17177.0,2.40610634]
[1673225473090,12.40344158,17178.0,17177.0,2.40610634]
[1673225473341,12.22894327,17178.0,17177.0,2.36210634]
[1673225473626,12.22894327,17178.0,17177.0,2.40610634]
[1673225473856,12.22894327,17178.0,17177.0,2.36210634]
[1673225474106,12.22894327,17178.0,17177.0,2.40610634]
[1673225474616,12.22894327,17178.0,17177.0,2.98827934]
[1673225474879,12.22894327,17178.0,17177.0,2.94427934]
[1673225475129,12.22894327,17178.0,17177.0,2.98827934]
[1673225476112,12.22894327,17178.0,17177.0,3.42305334]
[1673225476362,12.22894327,17178.0,17177.0,3.46705334]
[1673225477103,12.21230919,17178.0,17177.0,3.42305334]
[1673225477350,12.21230919,17178.0,17177.0,3.53905334]
[1673225477598,12.21230919,17178.0,17177.0,3.42305334]
[1673225477882,12.21230919,17178.0,17177.0,3.56205334]
[1673225478130,12.21230919,17178.0,17177.0,3.42305334]
[1673225478464,12.20630919,17178.0,17177.0,3.42305334]
[1673225479139,12.20630919,17178.0,17177.0,3.56305334]
[1673225479386,12.20630919,17178.0,17177.0,3.4229864]
[1673225479677,12.20630919,17178.0,17177.0,1.8062664]
[1673225480377,12.20630919,17178.0,17177.0,1.08661185]
[1673225480635,12.20630919,17178.0,17177.0,1.2240934]
[1673225480884,12.22144148,17178.0,17177.0,1.2240934]
[1673225481141,12.22144148,17178.0,17177.0,1.8062664]
[1673225485984,12.22144148,17178.0,17177.0,2.38851531]
[1673225487651,12.22144148,17178.0,17177.0,2.3884394]
[1673225490654,12.21544148,17178.0,17177.0,2.3884394]
[1673225490896,12.21544148,17178.0,17177.0,2.38858382]
[1673225491154,12.21544148,17178.0,17177.0,2.3884394]
[1673225493946,12.20030919,17178.0,17177.0,2.38858382]
[1673225494713,12.20030919,17178.0,17177.0,2.5006394]
[1673225499080,12.20030919,17178.0,17177.0,1.415546]
[1673225499599,12.3748075,17178.0,17177.0,1.415546]
[1673225499849,12.20030919,17178.0,17177.0,1.415546]
[1673225500130,13.60447256,17178.0,17177.0,0.139]
[1673225500639,13.95344064,17178.0,17177.0,0.139]
[1673225500882,13.95295907,17178.0,17177.0,0.139]
[1673225501209,13.96805772,17178.0,17176.0,0.0054723]
[1673225501394,13.96805772,17178.0,17177.0,0.009]
[1673225503241,14.78383254,17178.0,17177.0,0.009]
[1673225504515,14.34759634,17178.0,17177.0,0.009]
[1673225506033,4.34759634,17178.0,17177.0,0.009]
[1673225506280,4.35339115,17178.0,17177.0,0.009]
[1673225506539,4.70213063,17178.0,17177.0,0.009]
[1673225506804,4.35339115,17178.0,17177.0,0.009]
[1673225507311,4.70213085,17178.0,17177.0,0.009]
[1673225507817,4.35339115,17178.0,17177.0,0.009]
[1673225509637,4.70229518,17178.0,17177.0,0.009]
[1673225509879,4.35339115,17178.0,17177.0,0.009]
[1673225510130,4.70228523,17178.0,17177.0,0.009]
[1673225511116,4.3382925,17178.0,17177.0,0.009]
[1673225512097,4.36247467,17178.0,17177.0,0.009]
[1673225513120,5.46833849,17178.0,17177.0,0.009]
[1673225514439,4.94461367,17178.0,17177.0,0.009]
[1673225515780,5.46833849,17178.0,17177.0,0.009]
[1673225518256,4.94461367,17178.0,17177.0,0.009]
[1673225519027,3.91744663,17178.0,17177.0,0.01014991]
[1673225519284,4.35335469,17178.0,17177.0,0.01014991]
[1673225519790,4.35335469,17178.0,17177.0,0.009]
[1673225520044,4.33826575,17178.0,17177.0,0.009]
[1673225521048,4.35291554,17178.0,17177.0,0.009]
[1673225522000,4.33826575,17178.0,17177.0,0.009]
[1673225522780,4.78329379,17178.0,17177.0,0.009]
[1673225523031,4.34738573,17178.0,17177.0,0.009]
[1673225524128,4.36203552,17178.0,17177.0,0.009]
[1673225525890,4.35291164,17178.0,17177.0,0.01014991]
[1673225526409,4.36203552,17178.0,17177.0,0.009]
[1673225527184,4.88576034,17178.0,17177.0,0.00893215]
[1673225528206,4.87111055,17178.0,17177.0,0.00893215]
[1673225529484,5.15572473,17178.0,17177.0,0.00893215]
[1673225529744,6.31546211,17178.0,17177.0,0.00893215]
[1673225530018,6.97981889,17178.0,17177.0,0.00893215]
[1673225530274,6.39247601,17178.0,17177.0,0.00893215]
[1673225534402,5.70311101,17178.0,17177.0,0.00893215]
[1673225534690,6.33780842,17178.0,17177.0,0.00893215]
[1673225535651,6.27772163,17178.0,17177.0,0.00893215]
[1673225539172,7.27643018,17178.0,17177.0,0.00893215]
[1673225539414,6.27772163,17178.0,17177.0,0.00893215]
[1673225540434,5.64302422,17178.0,17177.0,0.00893215]
[1673225540702,6.15182422,17178.0,17177.0,0.00893215]
[1673225540940,7.15044553,17178.0,17177.0,0.00893215]
[1673225541182,7.79503675,17178.0,17177.0,0.00893215]
[1673225541688,7.1504526,17178.0,17177.0,0.00893215]
[1673225541936,6.69157615,17178.0,17177.0,0.00893215]
[1673225543209,6.13191937,17178.0,17177.0,0.00893215]
[1673225543444,5.83191937,17178.0,17177.0,0.00893215]
[1673225543693,6.41971697,17178.0,17177.0,0.00893215]
[1673225543939,6.29891697,17178.0,17177.0,0.00893215]
[1673225544927,6.29891697,17178.0,17176.0,0.0054723]
[1673225544928,0.4,17177.0,17176.0,0.0054723]
[1673225545177,2.98792787,17177.0,17176.0,0.0054723]
[1673225545419,2.87572787,17177.0,17176.0,0.0054723]
[1673225545671,2.88422787,17177.0,17176.0,0.0054723]
[1673225546227,3.58309348,17177.0,17176.0,0.0104723]
[1673225547056,4.9137123,17177.0,17176.0,0.0104723]
[1673225548073,4.3259147,17177.0,17176.0,0.0104723]
[1673225548375,4.91373201,17177.0,17176.0,0.0104723]
[1673225548916,4.76442139,17177.0,17176.0,0.0104723]
[1673225549173,5.46592766,17177.0,17175.0,0.00292772]
[1673225549423,2.61115568,17176.0,17175.0,0.00086848]
[1673225549676,4.35777668,17176.0,17175.0,0.00086848]